fUST/lending_fUST_20241227
["ID","MTS","AMOUNT","RATE_DAILY","PERIOD"]
[346825987,1735308635054,-500.0,0.00010079,2]
[346825988,1735308635063,-500.0,0.00010079,2]
[346825989,1735308635072,-500.0,0.00010079,2]
[346825990,1735308635083,-500.0,0.00010079,2]
[346825991,1735308635093,-500.0,0.00010079,2]
[346825992,1735308635102,-500.0,0.00010079,2]
[346825993,1735308635112,-1486.75,0.00010079,2]
[346825994,1735308635124,-500.0,0.00010079,2]
[346825995,1735308635135,-500.0,0.00010079,2]
[346825996,1735308635144,-500.0,0.00010079,2]
[346825997,1735308635153,-951.91,0.00010079,2]
[346825998,1735308635163,-1000.0,0.00010079,2]
[346825999,1735308635172,-500.0,0.00010079,2]
[346826000,1735308635181,-500.0,0.00010079,2]
[346826001,1735308635191,-500.0,0.00010079,2]
[346826002,1735308635201,-647.25061643,0.0001008,2]
[346826003,1735308635211,-935.14,0.0001008,2]
[346826004,1735308635220,-1591.86,0.00010351,2]
[346826005,1735308635229,-620.41,0.00010351,2]
[346826006,1735308635238,-500.0,0.00010351,2]
[346826007,1735308635247,-575.71,0.00010351,2]
[346826008,1735308635257,-500.0,0.00010351,2]
[346826009,1735308635266,-364.56414819,0.00010351,2]
[346826010,1735308635276,-528.25187452,0.00010352,2]
[346826011,1735308635285,-500.0,0.00010352,2]
[346826012,1735308635294,-500.0,0.00010352,2]
[346826013,1735308635304,-500.0,0.00010352,2]
[346826014,1735308635313,-500.0,0.00010352,2]
[346826015,1735308635323,-500.0,0.00010352,2]
[346826016,1735308635332,-500.0,0.00010352,2]
[346826017,1735308635342,-500.0,0.00010352,2]
[346826018,1735308635353,-500.0,0.00010352,2]
[346826019,1735308635362,-500.0,0.00010352,2]
[346826020,1735308635370,-3775.58,0.00010352,2]
[346826021,1735308635378,-231.36181845,0.00010353,2]
[346826022,1735308635387,-500.0,0.00010353,2]
[346826023,1735308635397,-188.52439004,0.00010353,2]
[346826024,1735308635406,-500.0,0.00010353,2]
[346826025,1735308635415,-500.0,0.00010353,2]
[346826026,1735308635425,-500.0,0.00010353,2]
[346826027,1735308635434,-546.08334153,0.00010353,2]
[346826028,1735308635443,-500.0,0.00010353,2]
[346826029,1735308635453,-500.0,0.00010353,2]
[346826030,1735308635462,-500.0,0.00010353,2]
[346826031,1735308635472,-1486.75,0.00010353,2]
[346826032,1735308635482,-500.0,0.00010353,2]
[346826033,1735308635491,-500.0,0.00010353,2]
[346826034,1735308635500,-951.91,0.00010353,2]
[346826035,1735308635509,-1000.0,0.00010353,2]
[346826036,1735308635519,-500.0,0.00010353,2]
[346826037,1735308635528,-500.0,0.00010353,2]
[346826038,1735308635537,-500.0,0.00010353,2]
[346826039,1735308635547,-935.14,0.00010354,2]
[346826040,1735308635556,-500.0,0.00010456,2]
[346826041,1735308635565,-500.0,0.00010477,2]
[346826042,1735308635575,-500.0,0.00010477,2]
[346826043,1735308635586,-396.20504013,0.00010478,2]
[346826044,1735308635595,-420.0,0.00010481,2]
[346826045,1735308635604,-500.0,0.00010606,2]
[346826046,1735308635614,-1591.86,0.00010625,2]
[346826047,1735308635623,-620.41,0.00010625,2]
[346826048,1735308635632,-500.0,0.00010625,2]
[346826049,1735308635642,-500.0,0.00010625,2]
[346826050,1735308635651,-216.54,0.00010626,2]
[346826051,1735308635660,-500.0,0.00010626,2]
[346826052,1735308635670,-510.62,0.00010626,2]
[346826053,1735308635680,-500.0,0.00010626,2]
[346826054,1735308635689,-277.09846565,0.00010626,2]
[346826055,1735308635698,-500.0,0.00010626,2]
[346826056,1735308635708,-500.0,0.00010626,2]
[346826057,1735308635718,-500.0,0.00010626,2]
[346826058,1735308635728,-3775.58,0.00010626,2]
[346826059,1735308635737,-500.0,0.00010627,2]
[346826060,1735308635747,-500.0,0.00010627,2]
[346826061,1735308635758,-500.0,0.00010627,2]
[346826062,1735308635767,-500.0,0.00010627,2]
[346826063,1735308635777,-500.0,0.00010627,2]
[346826064,1735308635786,-500.0,0.00010627,2]
[346826065,1735308635796,-1486.75,0.00010627,2]
[346826066,1735308635806,-500.0,0.00010627,2]
[346826067,1735308635815,-500.0,0.00010627,2]
[346826068,1735308635825,-951.91,0.00010627,2]
[346826069,1735308635835,-1000.0,0.00010627,2]
[346826070,1735308635843,-500.0,0.00010627,2]
[346826071,1735308635853,-500.0,0.00010627,2]
[346826072,1735308635869,-500.0,0.00010627,2]
[346826073,1735308635878,-935.14,0.00010628,2]
[346826074,1735308635888,-584.47,0.000108,2]
[346826075,1735308635899,-1591.86,0.00010899,2]
[346826076,1735308635909,-620.41,0.00010899,2]
[346826077,1735308635917,-500.0,0.00010899,2]
[346826078,1735308635927,-373.94,0.00010899,2]
[346826079,1735308635938,-500.0,0.000109,2]
[346826080,1735308635948,-500.0,0.000109,2]
[346826081,1735308635957,-500.0,0.000109,2]
[346826082,1735308635966,-500.0,0.000109,2]
[346826083,1735308635975,-500.0,0.000109,2]
[346826084,1735308635984,-3775.58,0.000109,2]
[346826085,1735308635993,-500.0,0.00010901,2]
[346826086,1735308636002,-508.11717507,0.00010901,2]
[346826087,1735308636014,-500.0,0.00010901,2]
[346826088,1735308636027,-500.0,0.00010901,2]
[346826089,1735308636039,-500.0,0.00010901,2]
[346826090,1735308636051,-392.97790478,0.00010901,2]
[346826091,1735308636062,-1486.75,0.00010901,2]
[346826092,1735308636074,-500.0,0.00010901,2]
[346826093,1735308636086,-500.0,0.00010901,2]
[346826094,1735308636096,-951.91,0.00010901,2]
[346826095,1735308636106,-512.63820281,0.00010901,2]
[346826096,1735308636118,-500.0,0.00010901,2]
[346826097,1735308636130,-599.75,0.00010901,2]
[346826098,1735308636140,-500.0,0.00010901,2]
[346826099,1735308636151,-935.14,0.00010902,2]
[346826100,1735308636163,-411.6861664,0.00010959,2]
[346826101,1735308636174,-10519.4700483,0.00011025,2]
[346826102,1735308636185,-1000.0,0.00011025,2]
[346826103,1735308636197,-1591.86,0.00011173,2]
[346826104,1735308636208,-620.41,0.00011173,2]
[346826105,1735308636219,-500.0,0.00011173,2]
[346826106,1735308636229,-500.0,0.00011174,2]
[346826107,1735308636240,-539.80266761,0.00011174,2]
[346826108,1735308636251,-500.0,0.00011174,2]
[346826109,1735308636263,-630.88088989,0.00011174,2]
[346826118,1735308638906,-3144.69911011,0.00011174,2]
[346826119,1735308638917,-500.0,0.00011175,2]
[346826120,1735308638928,-500.0,0.00011175,2]
[346826121,1735308638940,-500.0,0.00011175,2]
[346826122,1735308639157,-1486.75,0.00011175,2]
[346826123,1735308639169,-500.0,0.00011175,2]
[346826124,1735308639180,-500.0,0.00011175,2]
[346826125,1735308639192,-951.91,0.00011175,2]
[346826126,1735308639204,-500.0,0.00011175,2]
[346826127,1735308639215,-500.0,0.00011175,2]
[346826128,1735308639225,-935.14,0.00011176,2]
[346826129,1735308639235,-175.16693328,0.00011285,2]
[346826130,1735308639245,-287.4765731,0.00011309,2]
[346826131,1735308639258,-2037.5234269,0.00011309,2]
[346826132,1735308639267,-179.65,0.00011432,2]
[346826133,1735308639279,-151.492,0.00011432,2]
[346826134,1735308639291,-150.0,0.00011432,2]
[346826135,1735308639302,-225.974,0.00011432,2]
[346826136,1735308639314,-534.0,0.00011432,2]
[346826137,1735308639328,-2119.0,0.00011432,2]
[346826138,1735308639342,-844.92186983,0.00011447,2]
[346826170,1735308646861,-500.0,9.529e-05,2]
[346826171,1735308646873,-500.0,9.529e-05,2]
[346826172,1735308646883,-232.30465878,0.0001035,2]
[346826173,1735308646893,-451.13033167,0.0001035,2]
[346826174,1735308646903,-746.93813017,0.00011447,2]
[346826175,1735308646914,-620.41,0.00011447,2]
[346826176,1735308646924,-500.0,0.00011447,2]
[346826177,1735308646935,-3775.58,0.00011448,2]
[346826178,1735308646944,-500.0,0.00011449,2]
[346826179,1735308646955,-513.92,0.00011449,2]
[346826180,1735308646964,-8.5298288,0.00011449,2]
[346826216,1735308766439,13900.0,8e-05,2]
[346826218,1735309015939,4418.5937072,8.652e-05,2]
[346826219,1735309160595,633.3745038,8.972e-05,2]
[346826220,1735309175560,585.91358848,8.972e-05,2]
[346826222,1735309328664,258.83099774,8.965e-05,2]
[346826223,1735309343958,258.83099774,8.965e-05,2]
[346826225,1735309504837,258.83099774,8.965e-05,2]
[346826226,1735309513430,258.83099774,8.965e-05,2]
[346826227,1735309521404,156.88151058,8.965e-05,2]
[346826229,1735309652143,-258.83099774,9.055e-05,2]
[346826230,1735309652166,-156.3745038,9.34e-05,2]
[346826231,1735309652188,-300.0,9.528e-05,2]
[346826232,1735309652209,-500.0,9.529e-05,2]
[346826233,1735309652231,-264.7285068,9.529e-05,2]
[346826238,1735309719680,500.000001,0.00020332,120]
[346826261,1735309831927,-300.0,9.528e-05,2]
[346826262,1735309831938,-235.2714932,9.529e-05,2]
[346826264,1735309831948,-500.0,9.529e-05,2]
[346826266,1735309831957,-500.0,9.529e-05,2]
[346826268,1735309831967,-500.0,9.529e-05,2]
[346826270,1735309831977,-500.0,9.529e-05,2]
[346826272,1735309831987,-500.0,9.529e-05,2]
[346826274,1735309831996,-500.0,9.529e-05,2]
[346826276,1735309832006,-500.0,9.529e-05,2]
[346826278,1735309832015,-500.0,9.529e-05,2]
[346826280,1735309832025,-500.0,9.529e-05,2]
[346826282,1735309832035,-500.0,9.529e-05,2]
[346826283,1735309832044,-330.81748576,9.529e-05,2]
[346826284,1735309832064,-169.68526885,9.529e-05,2]
[346826285,1735309832074,-122.09673149,9.529e-05,2]
[346826286,1735309832086,-377.90326851,9.529e-05,2]
[346826287,1735309832096,-500.0,9.529e-05,2]
[346826288,1735309832105,-500.0,9.529e-05,2]
[346826289,1735309832115,-500.0,9.529e-05,2]
[346826290,1735309832124,-500.0,9.529e-05,2]
[346826291,1735309832133,-500.0,9.529e-05,2]
[346826292,1735309832143,-960.52,9.529e-05,2]
[346826293,1735309832153,-500.0,9.529e-05,2]
[346826294,1735309832163,-500.0,9.529e-05,2]
[346826295,1735309832172,-489.80886354,9.529e-05,2]
[346826296,1735309832182,-500.0,9.529e-05,2]
[346826297,1735309832191,-500.0,9.529e-05,2]
[346826298,1735309832201,-1000.0,9.529e-05,2]
[346826299,1735309832210,-500.0,9.529e-05,2]
[346826300,1735309832220,-500.0,9.529e-05,2]
[346826301,1735309832229,-500.0,9.529e-05,2]
[346826302,1735309832239,-500.0,9.529e-05,2]
[346826303,1735309832250,-500.0,9.529e-05,2]
[346826304,1735309832259,-500.0,9.529e-05,2]
[346826305,1735309832270,-500.0,9.529e-05,2]
[346826306,1735309832281,-500.0,9.529e-05,2]
[346826307,1735309832291,-258.78582848,9.53e-05,2]
[346826308,1735309832302,-500.0,9.53e-05,2]
[346826309,1735309832315,-500.0,9.53e-05,2]
[346826310,1735309832326,-500.0,9.53e-05,2]
[346826311,1735309832335,-500.0,9.53e-05,2]
[346826312,1735309832346,-500.0,9.53e-05,2]
[346826313,1735309832356,-500.0,9.53e-05,2]
[346826314,1735309832366,-500.0,9.53e-05,2]
[346826315,1735309832376,-225.07813003,9.53e-05,2]
[346826316,1735309832386,-500.0,9.53e-05,2]
[346826317,1735309832396,-500.0,9.53e-05,2]
[346826318,1735309832406,-352.08978949,9.53e-05,2]
[346826319,1735309832416,-410.43106348,9.53e-05,2]
[346826320,1735309832426,-500.0,9.53e-05,2]
[346826321,1735309832438,-500.0,9.53e-05,2]
[346826322,1735309832447,-500.0,9.53e-05,2]
[346826323,1735309832457,-500.0,9.53e-05,2]
[346826324,1735309832466,-500.0,9.53e-05,2]
[346826325,1735309832476,-389.39318922,9.531e-05,2]
[346826326,1735309832486,-500.0,9.531e-05,2]
[346826327,1735309832496,-500.0,9.531e-05,2]
[346826328,1735309832506,-500.0,9.531e-05,2]
[346826329,1735309832515,-500.0,9.531e-05,2]
[346826330,1735309832524,-500.0,9.531e-05,2]
[346826331,1735309832534,-500.0,9.531e-05,2]
[346826332,1735309832543,-500.0,9.531e-05,2]
[346826333,1735309832558,-500.0,9.531e-05,2]
[346826334,1735309832567,-500.0,9.531e-05,2]
[346826335,1735309832577,-500.0,9.531e-05,2]
[346826336,1735309832586,-500.0,9.531e-05,2]
[346826337,1735309832595,-500.0,9.531e-05,2]
[346826338,1735309832605,-500.0,9.531e-05,2]
[346826339,1735309832614,-500.0,9.531e-05,2]
[346826340,1735309832624,-500.0,9.531e-05,2]
[346826341,1735309832633,-500.0,9.531e-05,2]
[346826342,1735309832642,-500.0,9.531e-05,2]
[346826343,1735309832652,-1775.17,9.531e-05,2]
[346826344,1735309832661,-500.0,9.531e-05,2]
[346826345,1735309832670,-500.0,9.531e-05,2]
[346826346,1735309832679,-500.0,9.531e-05,2]
[346826347,1735309832688,-500.0,9.531e-05,2]
[346826348,1735309832698,-500.0,9.531e-05,2]
[346826349,1735309832707,-500.0,9.531e-05,2]
[346826350,1735309832716,-501.25854071,9.531e-05,2]
[346826351,1735309832725,-724.31,9.531e-05,2]
[346826352,1735309832735,-500.0,9.531e-05,2]
[346826353,1735309832744,-500.0,9.531e-05,2]
[346826354,1735309832753,-1373.25,9.531e-05,2]
[346826355,1735309832762,-500.0,9.531e-05,2]
[346826356,1735309832771,-500.0,9.531e-05,2]
[346826357,1735309832781,-500.0,9.531e-05,2]
[346826358,1735309832790,-145.82090835,9.531e-05,2]
[346826359,1735309832807,-357.86427558,9.531e-05,2]
[346826360,1735309832817,-500.0,9.531e-05,2]
[346826361,1735309832826,-500.0,9.531e-05,2]
[346826362,1735309832836,-500.0,9.531e-05,2]
[346826363,1735309832845,-339.03230142,9.531e-05,2]
[346826364,1735309832855,-500.0,9.531e-05,2]
[346826365,1735309832864,-500.0,9.531e-05,2]
[346826366,1735309832873,-500.0,9.531e-05,2]
[346826367,1735309832883,-500.0,9.531e-05,2]
[346826368,1735309832892,-501.62141521,9.531e-05,2]
[346826369,1735309832902,-503.87729302,9.531e-05,2]
[346826370,1735309832911,-500.0,9.531e-05,2]
[346826371,1735309832920,-380.50787126,9.531e-05,2]
[346826372,1735309832930,-500.0,9.531e-05,2]
[346826373,1735309832939,-500.0,9.531e-05,2]
[346826374,1735309832949,-500.0,9.531e-05,2]
[346826375,1735309832958,-500.0,9.531e-05,2]
[346826376,1735309832967,-500.0,9.531e-05,2]
[346826377,1735309832976,-500.0,9.531e-05,2]
[346826378,1735309832986,-500.0,9.531e-05,2]
[346826379,1735309832995,-500.0,9.531e-05,2]
[346826380,1735309833005,-500.0,9.531e-05,2]
[346826381,1735309833015,-500.0,9.531e-05,2]
[346826382,1735309833024,-500.32960345,9.531e-05,2]
[346826383,1735309833033,-500.0,9.531e-05,2]
[346826384,1735309833043,-500.0,9.531e-05,2]
[346826385,1735309833053,-500.0,9.531e-05,2]
[346826386,1735309833064,-500.0,9.531e-05,2]
[346826387,1735309833074,-500.0,9.531e-05,2]
[346826388,1735309833084,-500.0,9.531e-05,2]
[346826389,1735309833093,-500.0,9.531e-05,2]
[346826390,1735309833103,-500.0,9.531e-05,2]
[346826391,1735309833113,-502.1690677,9.531e-05,2]
[346826392,1735309833123,-1495.92,9.531e-05,2]
[346826393,1735309833132,-500.0,9.531e-05,2]
[346826394,1735309833142,-500.0,9.531e-05,2]
[346826395,1735309833152,-500.0,9.531e-05,2]
[346826396,1735309833161,-500.0,9.531e-05,2]
[346826397,1735309833171,-500.0,9.531e-05,2]
[346826398,1735309833180,-500.0,9.531e-05,2]
[346826399,1735309833189,-500.0,9.531e-05,2]
[346826400,1735309833198,-500.0,9.531e-05,2]
[346826401,1735309833208,-500.0,9.531e-05,2]
[346826402,1735309833217,-500.0,9.531e-05,2]
[346826403,1735309833227,-500.0,9.531e-05,2]
[346826404,1735309833236,-500.0,9.531e-05,2]
[346826405,1735309833246,-98128.63985764,9.802e-05,2]
[346826407,1735309837897,-500.0,9.531e-05,2]
[346826409,1735309837907,-21821.00856671,9.802e-05,2]
[346826410,1735309837919,-34330.12558299,9.802e-05,2]
[346826414,1735309838113,-33629.52310128,9.802e-05,2]
[346826737,1735309846037,-377.43082248,9.529e-05,2]
[346826749,1735309846145,-122.56917752,9.529e-05,2]
[346826751,1735309846155,-500.0,9.53e-05,2]
[346826753,1735309846165,-500.0,9.53e-05,2]
[346826755,1735309846175,-503.61327749,9.531e-05,2]
[346826757,1735309846184,-500.0,9.531e-05,2]
[346826759,1735309846193,-500.0,9.531e-05,2]
[346826761,1735309846203,-4824.33,9.531e-05,2]
[346826763,1735309846213,-90909.48754499,9.802e-05,2]
[346827134,1735310069356,258.7623541,9.247e-05,2]
[346827135,1735310084273,258.7623541,9.247e-05,2]
[346827136,1735310099645,258.7623541,9.247e-05,2]
[346827137,1735310114588,170.63629643,9.247e-05,2]
[346827138,1735310307389,472.24856198,8.957e-05,2]
[346827139,1735310308360,24900.0,8.503e-05,2]
[346827140,1735310322304,472.24856198,8.957e-05,2]
[346827141,1735310337069,472.24856198,8.957e-05,2]
[346827142,1735310346183,472.24856198,8.957e-05,2]
[346827143,1735310354838,472.24856198,8.957e-05,2]
[346827144,1735310369893,472.24856198,8.957e-05,2]
[346827145,1735310387319,472.24856198,8.957e-05,2]
[346827146,1735310402430,472.24856198,8.957e-05,2]
[346827147,1735310417821,472.24856198,8.957e-05,2]
[346827148,1735310433334,472.24856198,8.957e-05,2]
[346827149,1735310448758,472.24856198,8.957e-05,2]
[346827150,1735310464971,453.2126692,8.957e-05,2]
[346827151,1735310479057,683.3022281,8.596e-05,2]
[346827152,1735310589439,472.24856198,8.957e-05,2]
[346827153,1735310605731,472.24856198,8.957e-05,2]
[346827154,1735310614129,196.18729161,8.957e-05,2]
[346827155,1735310622673,472.24856198,8.957e-05,2]
[346827156,1735310638044,472.24856198,8.957e-05,2]
[346827157,1735310653754,472.24856198,8.957e-05,2]
[346827158,1735310669328,472.24856198,8.957e-05,2]
[346827159,1735310677688,237.06285719,8.957e-05,2]
[346827160,1735310685739,472.24856198,8.957e-05,2]
[346827161,1735310693569,416.14697924,8.957e-05,2]
[346827162,1735310699985,482.23614797,8.948e-05,2]
[346827163,1735310704192,367.53610776,8.957e-05,2]
[346827164,1735310712558,201.4177886,8.957e-05,2]
[346827166,1735310721336,472.24856198,8.957e-05,2]
[346827168,1735310752603,472.24856198,8.957e-05,2]
[346827169,1735310768516,293.52486582,8.957e-05,2]
[346827170,1735310776373,472.24856198,8.957e-05,2]
[346827171,1735310784972,250.0,8.527e-05,2]
[346827172,1735310791919,472.24856198,8.957e-05,2]
[346827173,1735310807631,472.24856198,8.957e-05,2]
[346827174,1735310811774,733.40485688,8.948e-05,2]
[346827175,1735310823332,472.24856198,8.957e-05,2]
[346827177,1735310839139,472.24856198,8.957e-05,2]
[346827179,1735310854941,458.02001908,8.957e-05,2]
[346827180,1735310920552,-472.24856198,9.048e-05,2]
[346827181,1735310920576,-852.75645458,9.24e-05,2]
[346827182,1735310920597,-196.15438331,9.428e-05,2]
[346827183,1735310920620,-300.0,9.526e-05,2]
[346827184,1735310920641,-250.32829981,9.526e-05,2]
[346827185,1735310920663,-500.0,9.526e-05,2]
[346827186,1735310920686,-500.0,9.526e-05,2]
[346827187,1735310920708,-500.0,9.526e-05,2]
[346827188,1735310920729,-593.09469105,9.526e-05,2]
[346827189,1735310920750,-490.27386238,9.526e-05,2]
[346827190,1735310920773,-500.0,9.526e-05,2]
[346827191,1735310920800,-500.0,9.526e-05,2]
[346827192,1735310920826,-500.0,9.526e-05,2]
[346827193,1735310920849,-500.0,9.526e-05,2]
[346827194,1735310920871,-500.0,9.526e-05,2]
[346827195,1735310920894,-500.0,9.526e-05,2]
[346827196,1735310920915,-500.0,9.526e-05,2]
[346827197,1735310920939,-500.0,9.526e-05,2]
[346827198,1735310920961,-500.0,9.526e-05,2]
[346827199,1735310920984,-500.0,9.526e-05,2]
[346827200,1735310921006,-500.0,9.526e-05,2]
[346827201,1735310921028,-500.0,9.526e-05,2]
[346827202,1735310921051,-399.41746918,9.526e-05,2]
[346827203,1735310921079,-500.0,9.526e-05,2]
[346827204,1735310921102,-500.0,9.526e-05,2]
[346827205,1735310921126,-500.0,9.526e-05,2]
[346827206,1735310921148,-500.0,9.526e-05,2]
[346827207,1735310921172,-500.0,9.526e-05,2]
[346827208,1735310921196,-500.0,9.526e-05,2]
[346827209,1735310921221,-500.0,9.526e-05,2]
[346827210,1735310921244,-500.0,9.526e-05,2]
[346827211,1735310921267,-500.0,9.526e-05,2]
[346827212,1735310921288,-500.0,9.526e-05,2]
[346827213,1735310921309,-500.0,9.526e-05,2]
[346827214,1735310921338,-650.0,9.526e-05,2]
[346827215,1735310921361,-500.0,9.526e-05,2]
[346827216,1735310921383,-500.0,9.526e-05,2]
[346827217,1735310921406,-500.0,9.526e-05,2]
[346827218,1735310921427,-500.0,9.526e-05,2]
[346827219,1735310921449,-500.0,9.526e-05,2]
[346827220,1735310921472,-500.0,9.526e-05,2]
[346827221,1735310921493,-500.0,9.526e-05,2]
[346827222,1735310921516,-500.0,9.526e-05,2]
[346827223,1735310921538,-500.0,9.526e-05,2]
[346827224,1735310921560,-500.0,9.526e-05,2]
[346827225,1735310921584,-500.0,9.526e-05,2]
[346827226,1735310921606,-500.0,9.526e-05,2]
[346827227,1735310921628,-500.0,9.526e-05,2]
[346827228,1735310921650,-500.0,9.526e-05,2]
[346827229,1735310921671,-500.0,9.526e-05,2]
[346827230,1735310921692,-500.0,9.526e-05,2]
[346827231,1735310921713,-500.0,9.526e-05,2]
[346827232,1735310921734,-500.0,9.526e-05,2]
[346827233,1735310921755,-500.0,9.526e-05,2]
[346827234,1735310921776,-500.0,9.526e-05,2]
[346827235,1735310921803,-500.0,9.526e-05,2]
[346827236,1735310921829,-500.0,9.527e-05,2]
[346827237,1735310921850,-500.0,9.527e-05,2]
[346827238,1735310921873,-324.57680693,9.527e-05,2]
[346827239,1735310921894,-500.0,9.527e-05,2]
[346827240,1735310921916,-500.0,9.527e-05,2]
[346827241,1735310921938,-736.88,9.527e-05,2]
[346827242,1735310921959,-500.0,9.527e-05,2]
[346827243,1735310921980,-501.49429473,9.527e-05,2]
[346827244,1735310922001,-500.0,9.527e-05,2]
[346827245,1735310922022,-500.0,9.527e-05,2]
[346827246,1735310922044,-500.0,9.527e-05,2]
[346827247,1735310922069,-501.52428087,9.527e-05,2]
[346827248,1735310922091,-500.0,9.527e-05,2]
[346827249,1735310922113,-500.69825388,9.527e-05,2]
[346827250,1735310922134,-501.82980364,9.527e-05,2]
[346827251,1735310922271,-500.00000001,9.527e-05,2]
[346827252,1735310922294,-500.0,9.527e-05,2]
[346827253,1735310922321,-500.0,9.527e-05,2]
[346827254,1735310922344,-500.0,9.527e-05,2]
[346827255,1735310922367,-500.0,9.527e-05,2]
[346827256,1735310922388,-500.0,9.527e-05,2]
[346827257,1735310922411,-500.0,9.527e-05,2]
[346827258,1735310922432,-500.0,9.527e-05,2]
[346827259,1735310922453,-500.83064738,9.527e-05,2]
[346827260,1735310922475,-500.0,9.527e-05,2]
[346827261,1735310922497,-500.0,9.527e-05,2]
[346827262,1735310922519,-500.0,9.527e-05,2]
[346827263,1735310922540,-500.0,9.527e-05,2]
[346827264,1735310922562,-500.0,9.527e-05,2]
[346827265,1735310922584,-500.0,9.527e-05,2]
[346827266,1735310922605,-500.0,9.527e-05,2]
[346827267,1735310922625,-500.0,9.527e-05,2]
[346827268,1735310922646,-500.0,9.527e-05,2]
[346827269,1735310922666,-500.0,9.527e-05,2]
[346827270,1735310922686,-500.0,9.527e-05,2]
[346827271,1735310922706,-500.0,9.527e-05,2]
[346827272,1735310922727,-500.0,9.527e-05,2]
[346827273,1735310922748,-500.0,9.527e-05,2]
[346827274,1735310922767,-500.0,9.527e-05,2]
[346827275,1735310922793,-500.0,9.527e-05,2]
[346827276,1735310922815,-500.0,9.527e-05,2]
[346827277,1735310922836,-500.54534549,9.527e-05,2]
[346827278,1735310922857,-500.0,9.527e-05,2]
[346827279,1735310922877,-500.0,9.527e-05,2]
[346827280,1735310922901,-1063.2,9.527e-05,2]
[346827281,1735310922923,-500.0,9.527e-05,2]
[346827282,1735310922945,-500.0,9.527e-05,2]
[346827283,1735310922965,-500.0,9.527e-05,2]
[346827284,1735310922987,-500.0,9.527e-05,2]
[346827285,1735310923007,-509.40068822,9.527e-05,2]
[346827286,1735310923029,-500.0,9.527e-05,2]
[346827287,1735310923050,-499.93448225,9.527e-05,2]
[346827288,1735310923075,-500.0,9.527e-05,2]
[346827289,1735310923096,-500.0,9.527e-05,2]
[346827290,1735310923115,-500.0,9.527e-05,2]
[346827291,1735310923136,-500.0,9.527e-05,2]
[346827292,1735310923157,-500.50638857,9.527e-05,2]
[346827293,1735310923178,-500.0,9.527e-05,2]
[346827294,1735310923198,-500.0,9.527e-05,2]
[346827295,1735310923218,-500.0,9.527e-05,2]
[346827296,1735310923238,-500.0,9.527e-05,2]
[346827297,1735310923259,-500.0,9.527e-05,2]
[346827298,1735310923279,-1444.88377672,9.527e-05,2]
[346827299,1735310923299,-500.0,9.528e-05,2]
[346827300,1735310923322,-500.0,9.528e-05,2]
[346827301,1735310923342,-500.0,9.528e-05,2]
[346827302,1735310923363,-215.25089443,9.528e-05,2]
[346827303,1735310923383,-501.109526,9.528e-05,2]
[346827304,1735310923405,-500.0,9.528e-05,2]
[346827305,1735310923426,-500.0,9.528e-05,2]
[346827306,1735310923447,-500.0,9.528e-05,2]
[346827307,1735310923468,-500.0,9.528e-05,2]
[346827308,1735310923489,-500.0,9.528e-05,2]
[346827309,1735310923512,-500.0,9.528e-05,2]
[346827310,1735310923533,-193.54274302,9.528e-05,2]
[346827311,1735310923555,-500.0,9.528e-05,2]
[346827312,1735310923582,-500.0,9.528e-05,2]
[346827313,1735310923603,-500.0,9.528e-05,2]
[346827314,1735310923624,-500.76214231,9.528e-05,2]
[346827315,1735310923647,-500.0,9.528e-05,2]
[346827316,1735310923669,-420.28139915,9.528e-05,2]
[346827317,1735310923692,-500.0,9.528e-05,2]
[346827318,1735310923714,-500.0,9.528e-05,2]
[346827319,1735310923736,-504.09787389,9.528e-05,2]